Cogmind - Beta 13 @@@ ROGUE MODE // 2024.05.18 @ 20:18:37 Player: Sherlockkat Result: Self-destructed Performance ------------- Evolutions (1) 500 Regions Visited (3) 600 Robots Destroyed (19) 95 Value Destroyed (357) 357 Prototype IDs (0) 0 Alien Tech Used (0) 0 Bonus (0) 0 TOTAL SCORE: 1552 Bonus ------- None Cogmind --------- Core Integrity 258/400 Matter 239/300 Energy 100/100 System Corruption 0% Temperature Cool (0) Movement Core (150) Ox2 Location -9/Materials Parts ------- > --- POWER (1) -------- (None) > --- PROPULSION (2) --- (None) > --- UTILITY (4) ------ Small Storage Unit > --- WEAPON (2) ------- Heavy Assault Rifle > --- INVENTORY (8) ---- Huge Storage Unit High-capacity Battery (250) Long-range Tractor Beam Grenade Launcher Grenade Launcher Heavy Flail Peak State ------------ > --- POWER ------------ Ion Engine > --- PROPULSION ------- Light Treads Light Treads > --- UTILITY ---------- Small Storage Unit Long-range Tractor Beam > --- WEAPON ----------- Assault Rifle Light Assault Rifle > --- INVENTORY -------- Light Ion Engine Heat Sink Huge Storage Unit High-capacity Battery Light Assault Rifle Grenade Launcher Grenade Launcher Heavy Flail [Rating: 10] Favorites ----------- Power Ion Engine Engine Ion Engine Propulsion Light Treads Treads Light Treads Utility Small Storage Unit Device Heat Sink Storage Small Storage Unit Processor Signal Interpreter Protection Utility Shielding Weapon Assault Rifle Ballistic Gun Assault Rifle Build | -11 -10 -10 -9 ------- Run | Yrd Mat Min Mat Slots Evolved 2 | . . . 2 Power . | . . . . Propulsion . | . . . . Utility 2 | . . . 2 Weapon . | . . . . Parts Attached 16 | 6 6 2 2 Power 2 | 1 . . 1 Engine 2 | 1 . . 1 Core . | . . . . Reactor . | . . . . Propulsion 2 | 2 . . . Treads 2 | 2 . . . Leg . | . . . . Wheel . | . . . . Hover . | . . . . Flight . | . . . . Utility 8 | 1 5 2 . Device 3 | . 1 2 . Storage 3 | 1 2 . . Processor 1 | . 1 . . Hackware . | . . . . Protection 1 | . 1 . . Artifact . | . . . . Weapon 4 | 2 1 . 1 Energy Gun . | . . . . Energy Cannon . | . . . . Ballistic Gun 4 | 2 1 . 1 Ballistic Cannon . | . . . . Launcher . | . . . . Special Weapon . | . . . . Impact Weapon . | . . . . Slashing Weapon . | . . . . Piercing Weapon . | . . . . Special Melee Weapon . | . . . . Unidentified Prototypes . | . . . . Parts Lost 7 | . . . 7 Power 2 | . . . 2 Propulsion 2 | . . . 2 Utility 1 | . . . 1 Weapon 2 | . . . 2 Highest Loss Streak 5 | . . . 5 To Critical Strikes . | . . . . Average Slot Usage (%) 93 | . 98 100 68 Engine 13 | . 14 14 9 Treads 25 | . 28 28 15 Device 9 | . 3 14 10 Storage 13 | . 14 14 11 Processor 3 | . 7 . . Ballistic Gun 26 | . 28 28 21 Naked Turns . | . . . . Heaviest Build 15 | 14 15 14 14 Greatest Support 40 | 40 40 40 40 Greatest Overweight (x) . | . . . . Average Overweight (x) . | . . . . Largest Inventory Capacity 25 | 8 25 8 8 Average Capacity 7 | 7 8 8 8 Most Carried 9 | 4 9 8 8 Average Carried 7 | 2 7 7 7 Final Capacity 8 | 8 8 8 8 Final Carried 8 | 4 8 8 6 Class Distribution -------------------- 100% | Mutant Dominant Class ---------------- Mutant | -10/Materials Mutant | -10/Mines Mutant | -9/Materials Resources | -11 -10 -10 -9 ----------- Run | Yrd Mat Min Mat Matter Collected 586 | 220 87 168 111 Remotely 135 | . . 135 . Salvage Created 446 | . 131 . 315 Parts 34 | . 19 . 15 Haulers Intercepted . | . . . . Recyclers Shooed . | . . . . Parts Field Recycled . | . . . . Retrieved Matter . | . . . . Parts Self-Destructed . | . . . . Prevented . | . . . . Kills | -11 -10 -10 -9 ------- Run | Yrd Mat Min Mat Combat Hostiles Destroyed 19 | . 9 . 10 Guns 19 | . 9 . 10 Classes Destroyed 2 | . 1 . 1 Swarmer 13 | . 9 . 4 Grunt 6 | . . . 6 Best Kill Streak 6 | . 3 . 6 Combat Bots Only 6 | . 3 . 6 Max Kills in Single Turn 1 | . 1 . 1 Gunslinging . | . . . . Exploded . | . . . . Melee . | . . . . Uniques/NPCs Destroyed . | . . . . Combat | -11 -10 -10 -9 -------- Run | Yrd Mat Min Mat Hostile Shots Fired 118 | . 34 . 84 Missed 32 | . 10 . 22 Damage Taken 941 | . 222 . 719 Core 176 | . 34 . 142 Absorbed by Shields . | . . . . Core Remaining (%) 93 | 100 . 86 . Volleys Fired 68 | . 23 5 40 Largest 2 | . 2 2 2 Hottest 40 | . 40 40 40 Shots Fired 127 | . 46 10 71 Gun 127 | . 46 10 71 Cannon . | . . . . Launcher . | . . . . Special . | . . . . Kinetic 127 | . 46 10 71 Thermal . | . . . . Explosive . | . . . . Electromagnetic . | . . . . Robot Hit Streak 9 | . 5 8 9 Robot Miss Streak 4 | . 4 1 3 Penetration Max . | . . . . Secondary Targets 2 | . . . 2 Max Gunslinging Chain 1 | . . . 1 Shots Hit Robots 70 | . 19 8 43 Core Hits 31 | . 11 1 19 Critical Kills 2 | . . . 2 Critical Parts Destroyed . | . . . . Critical Strikes 2 | . . . 2 Destroy 2 | . . . 2 Melee Attacks . | . . . . Impact . | . . . . Slashing . | . . . . Piercing . | . . . . Sneak Attacks . | . . . . Combat Hostiles . | . . . . Follow-up Attacks . | . . . . Damage Inflicted 789 | . 225 71 493 Guns 789 | . 225 71 493 Cannons . | . . . . Explosions . | . . . . Melee . | . . . . Ramming . | . . . . Kinetic 789 | . 225 71 493 Thermal . | . . . . Explosive . | . . . . Electromagnetic . | . . . . Impact . | . . . . Slashing . | . . . . Piercing . | . . . . Highest Corruption 1 | . 1 1 . Average Corruption 1 | . 1 1 . Corruption Purged . | . . . . Corruption Blocked . | . . . . Effects 9 | . 5 4 . Message Errors 2 | . . 2 . Matter Fused 4 | . 3 1 . Heat Flow Errors 1 | . 1 . . Data Loss (minor) 2 | . 1 1 . Overload Shots . | . . . . Overflow Damage . | . . . . Projectiles . | . . . . Explosions . | . . . . Melee . | . . . . Knockbacks . | . . . . Impact . | . . . . Kinetic . | . . . . Secondary . | . . . . Self-Inflicted Damage 31 | . 31 . . Shots 1 | . 1 . . Rammed . | . . . . Targets Rammed . | . . . . Kicked . | . . . . Crushed . | . . . . Highest Temperature 243 | . 243 . 2 Average Temperature 100 | . 139 . 2 Received Heat Transfer 330 | . . . 330 Siege Activations . | . . . . Robots Corrupted . | . . . . Combat Hostiles . | . . . . Parts Fried . | . . . . Impact Corruptions . | . . . . Robots Melted . | . . . . Combat Hostiles . | . . . . Parts Melted 1 | . . . 1 Heat Transferred . | . . . . Parts Sabotaged . | . . . . Parts Stolen . | . . . . Parts Stripped . | . . . . Power Chain Reactions . | . . . . Alert | -11 -10 -10 -9 ------- Run | Yrd Mat Min Mat Peak Influence 221 | . 189 33 221 Initial 33 | . . 33 1 Average 48 | . 62 20 89 Maximum Alert Level 1 | . . . 1 Low Security (%) 97 | 100 100 100 85 Level 1 2 | . . . 14 Level 2 . | . . . . Level 3 . | . . . . Level 4 . | . . . . Level 5 . | . . . . High Security . | . . . . Max Security . | . . . . Squads Dispatched 2 | . . 1 1 Investigation 1 | . . 1 . Extermination . | . . . . Reinforcement 1 | . . . 1 Assault . | . . . . Garrison . | . . . . Intercept . | . . . . Searches Triggered . | . . . . Construction Impeded . | . . . . Haulers Reinforced . | . . . . Active Scanning Responses . | . . . . Cargo Convoy Interrupts . | . . . . Stealth | -11 -10 -10 -9 --------- Run | Yrd Mat Min Mat Distress Signals 8 | . 3 . 5 Communications Jammed . | . . . . Distress Signals . | . . . . Times Spotted 33 | . 15 . 18 Peak Tracking Total 7 | . 4 . 7 Tactical Retreats . | . . . . Traps | -11 -10 -10 -9 ------- Run | Yrd Mat Min Mat Traps Triggered . | . . . . Indirectly . | . . . . Trap Hack Attempts . | . . . . Triggered . | . . . . Disarmed . | . . . . Reprogrammed . | . . . . Reused . | . . . . Traps Extracted . | . . . . Installed . | . . . . Triggered . | . . . . Machines | -11 -10 -10 -9 ---------- Run | Yrd Mat Min Mat Machines Disabled 1 | . 1 . . Max in Single Turn 1 | . 1 . . Machines Repaired . | . . . . Machines Dismantled . | . . . . Machines Sabotaged . | . . . . Overloaded Fab Kills . | . . . . Hacking | -11 -10 -10 -9 --------- Run | Yrd Mat Min Mat Machines Accessed 5 | . 2 2 1 Terminals 4 | . 2 1 1 Fabricators . | . . . . Repair Stations . | . . . . Recycling Units . | . . . . Scanalyzers . | . . . . Garrison Access . | . . . . Total Hacks 6 | . 3 2 1 Successful 3 | . 1 2 . Failed 3 | . 2 . 1 Catastrophic 1 | . . . 1 Database Lockouts . | . . . . Manual 1 | . . . 1 Terminals 5 | . 3 1 1 Fabricators . | . . . . Repair Stations . | . . . . Recycling Units . | . . . . Scanalyzers . | . . . . Garrison Access . | . . . . Terminal Hacks 3 | . 1 2 . Open Door 1 | . . 1 . Alert Level 1 | . 1 . . Zone Layout 1 | . . 1 . Fabricator Hacks . | . . . . Repair Station Hacks . | . . . . Recycling Unit Hacks . | . . . . Scanalyzer . | . . . . Garrison Access Hacks . | . . . . Unauthorized Hacks . | . . . . Terminals . | . . . . Fabricators . | . . . . Repair Stations . | . . . . Recycling Units . | . . . . Scanalyzers . | . . . . Garrison Access . | . . . . Data Cores Recovered . | . . . . Used . | . . . . Hacking Detections 4 | . 2 1 1 Full Trace Events 1 | . 1 . . Feedback Events . | . . . . Feedback Blocked . | . . . . Robot Schematics Acquired . | . . . . Robots Built . | . . . . Authchips . | . . . . Time . | . . . . Total Robot Build Rating . | . . . . Part Schematics Acquired . | . . . . Parts Built . | . . . . Authchips . | . . . . Time . | . . . . Total Part Build Rating . | . . . . Parts Repaired . | . . . . Time . | . . . . Parts Recycled . | . . . . Recycled Matter . | . . . . Retrieved Matter . | . . . . Retrieved Components . | . . . . Parts Scanalyzed . | . . . . Part Schematics Acquired . | . . . . Parts Damaged . | . . . . Bothacking | -11 -10 -10 -9 ------------ Run | Yrd Mat Min Mat Used RIF Installer . | . . . . Robots Hacked . | . . . . Non-combat . | . . . . Combat . | . . . . Robot Hacks Applied . | . . . . Relay Couplers Released . | . . . . Fabnet Peak Effective % . | . . . . Robots Rewired . | . . . . Allies Hacked . | . . . . Hacks Repelled . | . . . . Allies | -11 -10 -10 -9 -------- Run | Yrd Mat Min Mat Total Allies 1 | . . 1 . Largest Group 1 | . . 1 . Highest-Rated Group 31 | . . 31 . Highest-Rated Ally 31 | . . 31 . Total Orders . | . . . . Ally Attacks . | . . . . Total Damage . | . . . . Kills . | . . . . Allies Corrupted . | . . . . Allies Melted . | . . . . Intel | -11 -10 -10 -9 ------- Run | Yrd Mat Min Mat Robot Analysis Total . | . . . . Derelict Logs Recovered 1 | . . 1 . Drone Launches . | . . . . Drone Recoveries . | . . . . Exploration | -11 -10 -10 -9 ------------- Run | Yrd Mat Min Mat Turns Passed 1753 | 112 680 642 319 Spaces Moved 918 | 62 364 386 106 Core 2 | 2 . . . Treads 916 | 60 364 386 106 Legs . | . . . . Wheels . | . . . . Hover . | . . . . Flight . | . . . . Fastest Speed 50 | 50 160 160 160 Average Speed 159 | 156 160 160 160 Slowest Speed 160 | 160 160 160 160 Overloaded Moves . | . . . . Propulsion Burnouts . | . . . . Robots Hopped . | . . . . Cave-ins Triggered . | . . . . Exploration Rate (%) 36 | 4 58 67 16 Regions Visited 3 Branch Regions 1 Pre-discovered Areas 1 | . . 1 . Known Exits Taken . | . . . . Unknown Exits Taken 3 | 1 1 1 . Scrap Searched 1 | . . 1 . Spaces Dug . | . . . . Terrain Destroyed . | . . . . Melee . | . . . . Projectile . | . . . . AOE . | . . . . Terrain Rammed . | . . . . Walls Destroyed . | . . . . Machines Disabled . | . . . . Actions | -11 -10 -10 -9 --------- Run | Yrd Mat Min Mat Total 1092 | 75 422 402 193 Wait 58 | . 9 6 43 Move 915 | 61 363 385 106 Hop . | . . . . Pick Up 19 | 6 10 2 1 Fast Attach 10 | 6 4 . . Attach 2 | . . . 2 Detach 3 | . 3 . . Swap 4 | . 2 2 . Drop 13 | 2 8 2 1 Fire 68 | . 23 5 40 Melee . | . . . . Ram . | . . . . Kick . | . . . . Crush . | . . . . Escape Stasis . | . . . . Rewire . | . . . . Trap . | . . . . Miscellaneous . | . . . . Route ------- -11/Scrapyard -10/Materials (discovered 3 exits: *Mat x2 / *Min) -10/Mines -9/Materials History --------- Turn | Location | Event 9 | -11/Scrapyard | Discovered new exit (range 15) 113 | -11/Scrapyard | Entered Materials 328 | -10/Materials | Build established: Mutant 401 | -10/Materials | Discovered new exit (range 4) 725 | -10/Materials | Discovered new exit (range 10) 777 | -10/Materials | Discovered new exit (range 9) 793 | -10/Materials | Entered Mines 851 | -10/Mines | Met a Derelict shopkeep closing up shop 885 | -10/Mines | Met a Derelict bent on vengeance 1138 | -10/Mines | Received a Mining Laser from a helpful Derelict 1354 | -10/Mines | Discovered new exit (range 13) 1360 | -10/Mines | Learned location of Zion (-6) 1435 | -10/Mines | Entered Materials 1435 | -9/Materials | Evolved 2 slots: Utility x2 1754 | -9/Materials | Self-destructed Last Messages --------------- 01687_ G-34 Mercenary destroyed. 01692_ Acquired 36 matter. 01696_ Connecting with Terminal... 01696_ Current location identified: Materials 01703_ W-16 Scout sends out distress signal. 01719_ K-01 Serf collects debris. 01720_ G-34 Mercenary destroyed. 01721_ R-06 Scavenger collects Ion Engine. 01723_ K-01 Serf collects debris. 01726_ Lgt. Ion Engine destroyed. 01730_ Lgt. Treads destroyed. 01730_ K-01 Serf collects debris. 01733_ Lgt. Assault Rifle destroyed. 01734_ Assault Rifle destroyed. 01734_ K-01 Serf collects debris. 01743_ Heat Sink destroyed. 01747_ G-34 Mercenary suffers critical hit (Destroy). 01747_ G-34 Mercenary destroyed. 01752_ R-06 Scavenger collects Aluminum Leg. Map ----- +----------------------------------------------------+ | ?????????????????????????????????????????????????? | | ?????????????????????????????????????????????????? | | ?????????????????????????????????????????????????? | | ?????????????????????????????????????????????????? | | ?????????????????????????????????????????????????? | | ?????????????????????????????????????????????????? | | ?????????????????????????????????????????????????? | | ?????????????????????????????????????????????????? | | ?????????????????????????????????????????????????? | | ?????????????????????????????????????????????????? | | ???????????????????????? ???????????????????????? | | ???????????????????????? ???????????????????????? | | ????????????????????????r ???????????????????????? | | ???????????????????????? ???????????????????????? | | ???????????????????????? ???????????????????????? | | ???????????????????????? ???????????????????????? | | ???????????????????????? ???????????????????????? | | ???????????????????????? #??????????????????????? | | ???????????????????????? #??????????????????????? | | ???????????????????????? o/??????????????????????? | | ???????????????????????? #??????????????????????? | | ????????????????????????# #??????????????????????? | | ????????????????????????#r#??????????????????????? | | ????????????????????????#r#??????????????????????? | | ????????????????????????#g#??########????????????? | | ???????????????##########@#### #????????????? | | ???????????????# """"" + #????????????? | | ???????????????# ""T""^ # #????????????? | | ???????????????# g # ["T" #????????????? | | ???????????????# #! """ #????????????? | | ???????????????# # = #????????????? | | ???????????????# %#####+##????????????? | | ???????????????# u #?????????????? | | ???????????????##########+## #?????????????? | | ?????????????????# =*%=# #?????????????? | | ?????????????????# # #?????????????? | | ?????????????????# """ """ # #?????????????? | | ?????????????????# """ """ #%% #?????????????? | | ?????????????????# """ """%+ % #???????? | | ?????????????????# # #???????? | | ???????????####### ! =%# #???????? | | ???????????# ##[ + #???????? | | ???????????# ########+###+##+## """ #???????? | | ???????????# # #??? #?? ""???????????? | | ???????????# # #??? #????"???????????? | | ???????????# + #?????????????????????? | | ???????????# # #?????????? ?????????? | | ???????????# ## #????????? ??????????? | | ???????????# ## #???????? ??????????? | | ???????????# ## #??????? ??????????? | +----------------------------------------------------+ Best States ------------- Heat Dissipation 38 Energy Generation 10 Energy Capacity 250 Matter Stores 286 Matter Capacity 300 Sight Range 16 Terrain Scan Density 10 Utility Shielding 33 Evasion (%) 40 Recoil Reduction 2 Item Schematics ----------------- None Robot Schematics ------------------ None Fabricated ------------ Nothing Alien Tech Used ----------------- None Achievements -------------- None Challenges ------------ None Game ------ Seed BoreMassThrower Manual? 0 Play Time 00:10:43 Cumulative 403.5 hours Start 2024.05.18 @ 19:59:45 End 2024.05.18 @ 20:18:37 Sessions 5 Manual Loads 0 Difficulty Rogue Special Mode None Game No. 464 Rogue 464 Adventurer 0 Explorer 0 Win Type - Total 34 Types 22/3/8/1/0/0/0/0/0 Lore% 71 Gallery% 81 Achievement% 62 Wizard Run 0 Options --------- Layout 1 ASCII 1 Keyboard 1 Movement Numpad Keybinds 0 Fullscreen 1 Font 24/Smallcaps Map View 50x35 Zoom Use 0% Tactical HUD 1 Map Filters NONE Filters NONE Steam 1 RUN: 6032a1fa-c4b7-43dd-b6cf-ffa64656cde5